[Event "Early-Titled-Tuesday-Blitz-February-06-2024"]
[Site "Chess.com"]
[Date "2024.02.06"]
[Round "11"]
[White "chess_blitz00"]
[Black "viktorskliarov"]
[Result "1-0"]
[WhiteElo "2502"]
[BlackElo "2603"]
[TimeControl "180+1"]
[EndTime "10:07:22 PST"]
[Termination "chess_blitz00 won by checkmate"]

1. d4 {[%clk 0:02:59.7]} 1... Nf6 {[%clk 0:02:59]} 2. Nf3 {[%clk 0:02:59]} 2...
g6 {[%clk 0:02:59]} 3. c4 {[%clk 0:02:58.8]} 3... Bg7 {[%clk 0:02:59.3]} 4. Nc3
{[%clk 0:02:59.5]} 4... O-O {[%clk 0:02:59.1]} 5. g3 {[%clk 0:02:58.6]} 5... d6
{[%clk 0:02:58.4]} 6. Bg2 {[%clk 0:02:59]} 6... c5 {[%clk 0:02:58.2]} 7. O-O
{[%clk 0:02:57.2]} 7... cxd4 {[%clk 0:02:54.4]} 8. Nxd4 {[%clk 0:02:58.1]} 8...
a6 {[%clk 0:02:54.7]} 9. b3 {[%clk 0:02:57.6]} 9... Qc7 {[%clk 0:02:50.5]} 10.
Bb2 {[%clk 0:02:57.4]} 10... Nc6 {[%clk 0:02:50.4]} 11. Rc1 {[%clk 0:02:53.4]}
11... Nxd4 {[%clk 0:02:49.7]} 12. Qxd4 {[%clk 0:02:50.9]} 12... Be6 {[%clk
0:02:47.3]} 13. Qd3 {[%clk 0:02:21]} 13... Rac8 {[%clk 0:02:41.8]} 14. Rc2
{[%clk 0:02:12.2]} 14... Bf5 {[%clk 0:02:00.5]} 15. e4 {[%clk 0:02:10.7]} 15...
Be6 {[%clk 0:02:00.2]} 16. Rfc1 {[%clk 0:01:53.1]} 16... Qa5 {[%clk 0:01:56.3]}
17. Qd2 {[%clk 0:01:42.1]} 17... Qh5 {[%clk 0:01:41.7]} 18. Ne2 {[%clk
0:01:29.2]} 18... g5 {[%clk 0:01:11]} 19. f4 {[%clk 0:00:44.3]} 19... h6 {[%clk
0:01:09.9]} 20. f5 {[%clk 0:00:40.7]} 20... Bd7 {[%clk 0:01:08.5]} 21. h3 {[%clk
0:00:37.4]} 21... Bc6 {[%clk 0:00:55.7]} 22. Qe3 {[%clk 0:00:31.4]} 22... Nd7
{[%clk 0:00:43.7]} 23. Nd4 {[%clk 0:00:11.3]} 23... Ne5 {[%clk 0:00:37.3]} 24.
g4 {[%clk 0:00:10.4]} 24... Qh4 {[%clk 0:00:36.4]} 25. Bc3 {[%clk 0:00:10.1]}
25... Nxg4 {[%clk 0:00:25.4]} 26. hxg4 {[%clk 0:00:10.1]} 26... Qxg4 {[%clk
0:00:22.6]} 27. Nxc6 {[%clk 0:00:07.7]} 27... bxc6 {[%clk 0:00:20.3]} 28. Bxg7
{[%clk 0:00:07.4]} 28... Kxg7 {[%clk 0:00:20.8]} 29. Rf2 {[%clk 0:00:06.2]}
29... f6 {[%clk 0:00:19.1]} 30. Rc3 {[%clk 0:00:03.9]} 30... c5 {[%clk
0:00:15.1]} 31. Rd3 {[%clk 0:00:04.2]} 31... Qh5 {[%clk 0:00:14.1]} 32. Qd2
{[%clk 0:00:03.8]} 32... Qf7 {[%clk 0:00:13.4]} 33. Rh3 {[%clk 0:00:03.6]} 33...
h5 {[%clk 0:00:13.3]} 34. Rh2 {[%clk 0:00:03.9]} 34... Rh8 {[%clk 0:00:13.1]}
35. Bf3 {[%clk 0:00:04.3]} 35... Rcg8 {[%clk 0:00:12.4]} 36. Bd1 {[%clk
0:00:04.7]} 36... Kf8 {[%clk 0:00:12.4]} 37. Rfg2 {[%clk 0:00:05.1]} 37... g4
{[%clk 0:00:12.2]} 38. Qa5 {[%clk 0:00:04]} 38... Rg5 {[%clk 0:00:09]} 39. Qxa6
{[%clk 0:00:03.5]} 39... Kg7 {[%clk 0:00:07.7]} 40. Qc6 {[%clk 0:00:03.2]} 40...
g3 {[%clk 0:00:06]} 41. Rh3 {[%clk 0:00:02.7]} 41... h4 {[%clk 0:00:06.5]} 42.
Qd5 {[%clk 0:00:03.2]} 42... Qe8 {[%clk 0:00:05.6]} 43. a4 {[%clk 0:00:03.1]}
43... Qb8 {[%clk 0:00:05.8]} 44. Kh1 {[%clk 0:00:03.3]} 44... Qb4 {[%clk
0:00:05.9]} 45. Qe6 {[%clk 0:00:02.7]} 45... Qe1+ {[%clk 0:00:05.8]} 46. Rg1
{[%clk 0:00:03.1]} 46... g2+ {[%clk 0:00:05.8]} 47. Kh2 {[%clk 0:00:03.2]} 47...
Qg3+ {[%clk 0:00:06.1]} 48. Rxg3 {[%clk 0:00:02.4]} 48... hxg3+ {[%clk
0:00:06.6]} 49. Kxg2 {[%clk 0:00:02.9]} 49... Rh2+ {[%clk 0:00:07.1]} 50. Kf3
{[%clk 0:00:02.7]} 50... Rf2+ {[%clk 0:00:07]} 51. Ke3 {[%clk 0:00:03.3]} 51...
Kf8 {[%clk 0:00:07.5]} 52. Qc8+ {[%clk 0:00:03.2]} 52... Kf7 {[%clk 0:00:07.5]}
53. Rxg3 {[%clk 0:00:03.5]} 53... Rxg3+ {[%clk 0:00:07]} 54. Kxf2 {[%clk
0:00:03.9]} 54... Rd3 {[%clk 0:00:07]} 55. Qe6+ {[%clk 0:00:04.5]} 55... Kf8
{[%clk 0:00:07.1]} 56. Bh5 {[%clk 0:00:05.3]} 56... Rd2+ {[%clk 0:00:07]} 57.
Ke3 {[%clk 0:00:05.5]} 57... Kg7 {[%clk 0:00:06.9]} 58. Qf7+ {[%clk 0:00:06.1]}
58... Kh6 {[%clk 0:00:07.2]} 59. Qg6# {[%clk 0:00:06.5]} 1-0

[Event "Early-Titled-Tuesday-Blitz-February-06-2024"]
[Site "Chess.com"]
[Date "2024.02.06"]
[Round "11"]
[White "anasta10"]
[Black "DinaBelenkaya"]
[Result "1-0"]
[WhiteElo "2536"]
[BlackElo "2439"]
[TimeControl "180+1"]
[EndTime "10:07:22 PST"]
[Termination "anasta10 won on time"]

1. Nf3 {[%clk 0:03:00.9]} 1... d5 {[%clk 0:02:59.1]} 2. c4 {[%clk 0:03:01.1]}
2... d4 {[%clk 0:02:58.6]} 3. d3 {[%clk 0:03:00.9]} 3... c5 {[%clk 0:02:57.1]}
4. g3 {[%clk 0:03:01.6]} 4... Nc6 {[%clk 0:02:57]} 5. Bg2 {[%clk 0:03:02.3]}
5... e5 {[%clk 0:02:57]} 6. O-O {[%clk 0:03:02.8]} 6... Nf6 {[%clk 0:02:53.9]}
7. e3 {[%clk 0:03:03.4]} 7... Be7 {[%clk 0:02:53.6]} 8. exd4 {[%clk 0:03:04]}
8... exd4 {[%clk 0:02:53.8]} 9. Na3 {[%clk 0:03:04.4]} 9... O-O {[%clk
0:02:53.6]} 10. Nc2 {[%clk 0:03:05.1]} 10... a5 {[%clk 0:02:41.7]} 11. b3 {[%clk
0:03:03]} 11... Bf5 {[%clk 0:02:33.9]} 12. Bf4 {[%clk 0:03:00.3]} 12... Qd7
{[%clk 0:02:33.2]} 13. Re1 {[%clk 0:02:59.1]} 13... Rfe8 {[%clk 0:02:28.6]} 14.
Qd2 {[%clk 0:02:57.8]} 14... h6 {[%clk 0:01:49.4]} 15. Ne5 {[%clk 0:02:57.5]}
15... Nxe5 {[%clk 0:01:47.1]} 16. Bxe5 {[%clk 0:02:58.4]} 16... Ng4 {[%clk
0:01:32.4]} 17. Bf4 {[%clk 0:02:34.2]} 17... Bf6 {[%clk 0:01:27.6]} 18. Rxe8+
{[%clk 0:02:13.1]} 18... Rxe8 {[%clk 0:01:23.7]} 19. Re1 {[%clk 0:02:11.4]}
19... Rxe1+ {[%clk 0:01:21.9]} 20. Nxe1 {[%clk 0:02:08.9]} 20... Qe7 {[%clk
0:01:13.7]} 21. h3 {[%clk 0:01:31.8]} 21... Ne5 {[%clk 0:01:10.2]} 22. Qxa5
{[%clk 0:01:25]} 22... Nxd3 {[%clk 0:01:07.8]} 23. Nxd3 {[%clk 0:01:17.6]} 23...
Bxd3 {[%clk 0:01:08.7]} 24. Kh2 {[%clk 0:00:50]} 24... Qe2 {[%clk 0:00:43.7]}
25. Qd2 {[%clk 0:00:49.4]} 25... Qxd2 {[%clk 0:00:35.8]} 26. Bxd2 {[%clk
0:00:50.3]} 26... b6 {[%clk 0:00:35.4]} 27. a3 {[%clk 0:00:47.1]} 27... Kf8
{[%clk 0:00:29.6]} 28. Bd5 {[%clk 0:00:47.3]} 28... Ke7 {[%clk 0:00:11.4]} 29.
b4 {[%clk 0:00:44.2]} 29... cxb4 {[%clk 0:00:09.7]} 30. axb4 {[%clk 0:00:44.8]}
30... Bf5 {[%clk 0:00:09.8]} 31. c5 {[%clk 0:00:37.1]} 31... bxc5 {[%clk
0:00:08.5]} 32. bxc5 {[%clk 0:00:38]} 32... Be6 {[%clk 0:00:08.5]} 33. Bf3
{[%clk 0:00:28.1]} 33... Be5 {[%clk 0:00:07.1]} 34. Kg2 {[%clk 0:00:26]} 34...
Kd7 {[%clk 0:00:07]} 35. g4 {[%clk 0:00:23.5]} 35... Bc7 {[%clk 0:00:05.2]} 36.
Be4 {[%clk 0:00:19.2]} 36... g6 {[%clk 0:00:04.5]} 37. Bxh6 {[%clk 0:00:18.9]}
37... f5 {[%clk 0:00:03.7]} 38. gxf5 {[%clk 0:00:18.3]} 38... gxf5 {[%clk
0:00:02.7]} 39. Bf3 {[%clk 0:00:18]} 39... Bc4 {[%clk 0:00:02.9]} 40. Bd2 {[%clk
0:00:16.8]} 40... d3 {[%clk 0:00:03.3]} 41. h4 {[%clk 0:00:16.7]} 41... Ke6
{[%clk 0:00:03.5]} 42. h5 {[%clk 0:00:16.4]} 42... Kf6 {[%clk 0:00:03.4]} 43. c6
{[%clk 0:00:14.3]} 43... Bb5 {[%clk 0:00:03]} 44. Bc3+ {[%clk 0:00:13.9]} 44...
Kg5 {[%clk 0:00:03.2]} 45. Bd2+ {[%clk 0:00:13.4]} 45... f4 {[%clk 0:00:03.7]}
46. Kf1 {[%clk 0:00:12.4]} 46... Bc4 {[%clk 0:00:03.1]} 47. Ke1 {[%clk
0:00:12.3]} 47... Bb6 {[%clk 0:00:03.6]} 48. Bc3 {[%clk 0:00:12]} 48... Bb5
{[%clk 0:00:03.8]} 49. Bd2 {[%clk 0:00:09.1]} 49... Bc7 {[%clk 0:00:03.8]} 50.
Bc3 {[%clk 0:00:09.3]} 50... Bb6 {[%clk 0:00:04.3]} 51. Kd2 {[%clk 0:00:09.6]}
51... Bxf2 {[%clk 0:00:02.9]} 52. c7 {[%clk 0:00:10.2]} 52... Bd7 {[%clk
0:00:03]} 53. Kxd3 {[%clk 0:00:08.9]} 53... Bb6 {[%clk 0:00:02.6]} 54. Be5
{[%clk 0:00:08.9]} 54... Bf5+ {[%clk 0:00:01.5]} 55. Kc4 {[%clk 0:00:07.4]}
55... Bc8 {[%clk 0:00:02.4]} 56. Kb5 {[%clk 0:00:07.4]} 56... Be3 {[%clk
0:00:01.7]} 57. Bd6 {[%clk 0:00:05.9]} 57... Bd4 {[%clk 0:00:01.4]} 58. Bc5
{[%clk 0:00:05.9]} 58... Be5 {[%clk 0:00:01.7]} 59. Bb6 {[%clk 0:00:06.1]} 1-0

[Event "Early-Titled-Tuesday-Blitz-February-06-2024"]
[Site "Chess.com"]
[Date "2024.02.06"]
[Round "11"]
[White "LuisFSiles"]
[Black "MdChess1734"]
[Result "0-1"]
[WhiteElo "2259"]
[BlackElo "2389"]
[TimeControl "180+1"]
[EndTime "10:07:26 PST"]
[Termination "MdChess1734 won by resignation"]

1. e4 {[%clk 0:03:00.9]} 1... c6 {[%clk 0:02:55.3]} 2. d4 {[%clk 0:03:00.4]}
2... d5 {[%clk 0:02:52.5]} 3. exd5 {[%clk 0:03:01.3]} 3... cxd5 {[%clk
0:02:51.9]} 4. c4 {[%clk 0:03:02.2]} 4... Nf6 {[%clk 0:02:50.5]} 5. Nc3 {[%clk
0:03:02.2]} 5... g6 {[%clk 0:02:44.6]} 6. cxd5 {[%clk 0:03:01.3]} 6... Bg7
{[%clk 0:02:44.2]} 7. Bb5+ {[%clk 0:03:01.2]} 7... Nbd7 {[%clk 0:02:31.6]} 8. d6
{[%clk 0:02:59.4]} 8... O-O {[%clk 0:02:31]} 9. dxe7 {[%clk 0:02:59]} 9... Qxe7+
{[%clk 0:02:31.1]} 10. Be2 {[%clk 0:02:52.8]} 10... Nb6 {[%clk 0:02:20.9]} 11.
Nf3 {[%clk 0:02:52.2]} 11... Nfd5 {[%clk 0:02:12.7]} 12. O-O {[%clk 0:02:44.7]}
12... Bg4 {[%clk 0:02:07.2]} 13. Bg5 {[%clk 0:02:33.3]} 13... Qb4 {[%clk
0:02:00]} 14. Qb3 {[%clk 0:02:10]} 14... Qxb3 {[%clk 0:01:44.6]} 15. axb3 {[%clk
0:02:09.6]} 15... Rfc8 {[%clk 0:01:44.3]} 16. Bd2 {[%clk 0:01:57.5]} 16... Nb4
{[%clk 0:01:38]} 17. Ne5 {[%clk 0:01:28.7]} 17... Bxe2 {[%clk 0:01:31.9]} 18.
Nxe2 {[%clk 0:01:28.1]} 18... Nc2 {[%clk 0:01:29.2]} 19. Ra5 {[%clk 0:01:12.8]}
19... Re8 {[%clk 0:01:12.3]} 20. f4 {[%clk 0:00:51.7]} 20... f6 {[%clk
0:01:04.8]} 21. Rc1 {[%clk 0:00:50.7]} 21... fxe5 {[%clk 0:00:51.4]} 22. fxe5
{[%clk 0:00:47.1]} 22... Rac8 {[%clk 0:00:22.5]} 23. Rc5 {[%clk 0:00:47]} 23...
Nxd4 {[%clk 0:00:16.8]} 24. Nxd4 {[%clk 0:00:36.7]} 24... Rcd8 {[%clk
0:00:15.1]} 25. Bc3 {[%clk 0:00:34.1]} 25... Bxe5 {[%clk 0:00:14.5]} 26. Ne6
{[%clk 0:00:27.1]} 26... Bxc3 {[%clk 0:00:12.2]} 27. Nxd8 {[%clk 0:00:24.5]}
27... Bd4+ {[%clk 0:00:12.5]} 28. Kf1 {[%clk 0:00:24.6]} 28... Bxc5 {[%clk
0:00:13.1]} 29. Rxc5 {[%clk 0:00:20.9]} 29... Rxd8 {[%clk 0:00:12.8]} 30. Rc7
{[%clk 0:00:21.8]} 30... Rd7 {[%clk 0:00:13.3]} 31. Rc5 {[%clk 0:00:22.3]} 31...
Kf7 {[%clk 0:00:12.9]} 32. h4 {[%clk 0:00:22.1]} 32... Ke6 {[%clk 0:00:13.4]}
33. h5 {[%clk 0:00:22.7]} 33... Nd5 {[%clk 0:00:13.1]} 34. Kf2 {[%clk
0:00:21.5]} 34... Kd6 {[%clk 0:00:13.4]} 35. Rc4 {[%clk 0:00:21]} 35... Ke5
{[%clk 0:00:13.8]} 36. Kf3 {[%clk 0:00:20.7]} 36... Rf7+ {[%clk 0:00:13.7]} 37.
Kg3 {[%clk 0:00:19.5]} 37... Ne3 {[%clk 0:00:13.6]} 38. Rc5+ {[%clk 0:00:16.5]}
38... Ke4 {[%clk 0:00:13.9]} 39. Rc3 {[%clk 0:00:16.5]} 39... Nf5+ {[%clk
0:00:13.8]} 40. Kg4 {[%clk 0:00:17.1]} 40... Nd4 {[%clk 0:00:13.7]} 41. hxg6
{[%clk 0:00:16.5]} 41... hxg6 {[%clk 0:00:13.9]} 42. Rc4 {[%clk 0:00:15.5]}
42... Ke5 {[%clk 0:00:13.3]} 43. Kg5 {[%clk 0:00:15.8]} 43... Rg7 {[%clk
0:00:12.1]} 44. Rc5+ {[%clk 0:00:15.6]} 44... Kd6 {[%clk 0:00:11.7]} 45. Rc4
{[%clk 0:00:14.4]} 45... Ne6+ {[%clk 0:00:11.9]} 46. Kf6 {[%clk 0:00:14.9]}
46... g5 {[%clk 0:00:11.9]} 47. Re4 {[%clk 0:00:13.7]} 47... Re7 {[%clk
0:00:07.9]} 48. g4 {[%clk 0:00:13.7]} 48... Kd5 {[%clk 0:00:07.7]} 49. Re1
{[%clk 0:00:12.5]} 49... Re8 {[%clk 0:00:06]} 50. Kf7 {[%clk 0:00:12.7]} 50...
Rf8+ {[%clk 0:00:05.8]} 51. Kg6 {[%clk 0:00:13.1]} 51... Kd6 {[%clk 0:00:06.2]}
52. Rd1+ {[%clk 0:00:11.8]} 52... Ke7 {[%clk 0:00:06.7]} 53. Re1 {[%clk
0:00:12.3]} 53... Rf6+ {[%clk 0:00:06.7]} 54. Kh5 {[%clk 0:00:11]} 54... Kf7
{[%clk 0:00:07]} 55. Re2 {[%clk 0:00:10.6]} 55... Kg7 {[%clk 0:00:07.1]} 56.
Rxe6 {[%clk 0:00:05.4]} 56... Rxe6 {[%clk 0:00:07]} 57. Kxg5 {[%clk 0:00:06.3]}
57... Rb6 {[%clk 0:00:07.5]} 0-1

[Event "Early-Titled-Tuesday-Blitz-February-06-2024"]
[Site "Chess.com"]
[Date "2024.02.06"]
[Round "11"]
[White "CaspiIsrael"]
[Black "Sattarov_Bobur"]
[Result "1/2-1/2"]
[WhiteElo "2685"]
[BlackElo "2795"]
[TimeControl "180+1"]
[EndTime "10:07:27 PST"]
[Termination "Game drawn by repetition"]

1. e4 {[%clk 0:03:00.9]} 1... e5 {[%clk 0:03:00.1]} 2. Nf3 {[%clk 0:03:00.3]}
2... Nc6 {[%clk 0:03:00.7]} 3. d4 {[%clk 0:02:59]} 3... exd4 {[%clk 0:03:01.6]}
4. Nxd4 {[%clk 0:02:59.8]} 4... Qf6 {[%clk 0:03:01.6]} 5. Nf3 {[%clk 0:02:59.1]}
5... Bc5 {[%clk 0:03:00.1]} 6. Nc3 {[%clk 0:02:58.7]} 6... Nge7 {[%clk
0:02:56.7]} 7. Bg5 {[%clk 0:02:58.3]} 7... Qg6 {[%clk 0:02:56.5]} 8. Bd3 {[%clk
0:02:48.6]} 8... d6 {[%clk 0:02:55.5]} 9. e5 {[%clk 0:02:46.8]} 9... Bf5 {[%clk
0:02:54.2]} 10. Bxf5 {[%clk 0:02:34.3]} 10... Nxf5 {[%clk 0:02:52.9]} 11. exd6
{[%clk 0:02:33.4]} 11... O-O {[%clk 0:02:50.2]} 12. d7 {[%clk 0:02:25.5]} 12...
Ncd4 {[%clk 0:02:38.6]} 13. h4 {[%clk 0:02:08]} 13... Qe6+ {[%clk 0:02:31.7]}
14. Kf1 {[%clk 0:02:06]} 14... Qxd7 {[%clk 0:02:16.6]} 15. Nxd4 {[%clk
0:02:05.6]} 15... Nxd4 {[%clk 0:02:08.8]} 16. Ne4 {[%clk 0:02:04.9]} 16... Bb6
{[%clk 0:02:04.8]} 17. c3 {[%clk 0:02:02.6]} 17... Qb5+ {[%clk 0:02:01.8]} 18.
Kg1 {[%clk 0:02:02.8]} 18... Ne2+ {[%clk 0:01:57.2]} 19. Kh2 {[%clk 0:02:02.9]}
19... Bxf2 {[%clk 0:01:50.2]} 20. Rf1 {[%clk 0:01:37.8]} 20... Bb6 {[%clk
0:01:31.3]} 21. Qc2 {[%clk 0:01:11.7]} 21... Rae8 {[%clk 0:01:19.1]} 22. Rf5
{[%clk 0:01:08.8]} 22... Qc4 {[%clk 0:01:09.3]} 23. Nf6+ {[%clk 0:01:03.4]}
23... gxf6 {[%clk 0:01:02.2]} 24. Bxf6 {[%clk 0:01:04.3]} 24... h6 {[%clk
0:00:57.3]} 25. Raf1 {[%clk 0:00:51.4]} 25... Re4 {[%clk 0:00:52.4]} 26. Rh5
{[%clk 0:00:40.6]} 26... Be3 {[%clk 0:00:40.7]} 27. Rf3 {[%clk 0:00:26.2]} 27...
Rfe8 {[%clk 0:00:26]} 28. b3 {[%clk 0:00:21.5]} 28... Qe6 {[%clk 0:00:20.4]} 29.
Qxe2 {[%clk 0:00:12]} 29... Bg1+ {[%clk 0:00:07.2]} 30. Kxg1 {[%clk 0:00:10.3]}
30... Rxe2 {[%clk 0:00:06.8]} 31. Rxh6 {[%clk 0:00:06.9]} 31... Re1+ {[%clk
0:00:03.6]} 32. Kh2 {[%clk 0:00:07.3]} 32... Qxf6 {[%clk 0:00:01.8]} 33. Rhxf6
{[%clk 0:00:07.2]} 33... R8e7 {[%clk 0:00:02.2]} 34. Rf2 {[%clk 0:00:06.5]}
34... R1e3 {[%clk 0:00:02.1]} 35. R6f3 {[%clk 0:00:05.9]} 35... R3e4 {[%clk
0:00:02.6]} 36. g3 {[%clk 0:00:05.5]} 36... b5 {[%clk 0:00:02.8]} 37. Kg2 {[%clk
0:00:04.9]} 37... a5 {[%clk 0:00:02.5]} 38. Rd3 {[%clk 0:00:05.2]} 38... a4
{[%clk 0:00:01.6]} 39. bxa4 {[%clk 0:00:05.1]} 39... bxa4 {[%clk 0:00:02.1]} 40.
Rd4 {[%clk 0:00:05.8]} 40... Rxd4 {[%clk 0:00:02.4]} 41. cxd4 {[%clk 0:00:06.7]}
41... Re4 {[%clk 0:00:02.9]} 42. Rd2 {[%clk 0:00:06.8]} 42... Re3 {[%clk
0:00:03.4]} 43. Kf2 {[%clk 0:00:07.2]} 43... Ra3 {[%clk 0:00:03.8]} 44. d5
{[%clk 0:00:06.8]} 44... Kg7 {[%clk 0:00:03.4]} 45. Kg2 {[%clk 0:00:06.9]} 45...
f5 {[%clk 0:00:03.5]} 46. Kf2 {[%clk 0:00:06]} 46... Kf6 {[%clk 0:00:03.6]} 47.
Kg2 {[%clk 0:00:06.3]} 47... Ke5 {[%clk 0:00:03.8]} 48. h5 {[%clk 0:00:05.3]}
48... Kf6 {[%clk 0:00:03.9]} 49. d6 {[%clk 0:00:03.4]} 49... cxd6 {[%clk
0:00:04.8]} 50. Rxd6+ {[%clk 0:00:03.6]} 50... Kg5 {[%clk 0:00:05.5]} 51. Rd2
{[%clk 0:00:04]} 51... Kxh5 {[%clk 0:00:05.1]} 52. Kf2 {[%clk 0:00:04.4]} 52...
Kg4 {[%clk 0:00:04.9]} 53. Rd4+ {[%clk 0:00:04.8]} 53... Kg5 {[%clk 0:00:05.4]}
54. Rd2 {[%clk 0:00:05.4]} 54... Rc3 {[%clk 0:00:05.4]} 55. Rb2 {[%clk
0:00:05.2]} 55... a3 {[%clk 0:00:05.5]} 56. Rd2 {[%clk 0:00:05.3]} 56... Kg4
{[%clk 0:00:05.1]} 57. Rd4+ {[%clk 0:00:05.4]} 57... Kg5 {[%clk 0:00:05.8]} 58.
Rd2 {[%clk 0:00:05.8]} 58... Rc4 {[%clk 0:00:06.1]} 59. Kf3 {[%clk 0:00:05.9]}
59... Rc3+ {[%clk 0:00:05.2]} 60. Kf2 {[%clk 0:00:06.1]} 1/2-1/2

[Event "Early-Titled-Tuesday-Blitz-February-06-2024"]
[Site "Chess.com"]
[Date "2024.02.06"]
[Round "11"]
[White "HajiyevKanan"]
[Black "N4700000"]
[Result "0-1"]
[WhiteElo "2584"]
[BlackElo "2443"]
[TimeControl "180+1"]
[EndTime "10:07:27 PST"]
[Termination "N4700000 won on time"]

1. d4 {[%clk 0:03:00.9]} 1... d6 {[%clk 0:02:59.3]} 2. Nf3 {[%clk 0:03:01.8]}
2... Nf6 {[%clk 0:02:58.2]} 3. g3 {[%clk 0:03:02.4]} 3... Nbd7 {[%clk
0:02:57.6]} 4. Bg2 {[%clk 0:03:03]} 4... e5 {[%clk 0:02:57.5]} 5. O-O {[%clk
0:03:01.3]} 5... e4 {[%clk 0:02:52.6]} 6. Ne1 {[%clk 0:02:59.4]} 6... d5 {[%clk
0:02:52]} 7. f3 {[%clk 0:03:00.1]} 7... exf3 {[%clk 0:02:42]} 8. Nxf3 {[%clk
0:03:00.8]} 8... Be7 {[%clk 0:02:39.6]} 9. c4 {[%clk 0:02:57.4]} 9... c6 {[%clk
0:02:36.7]} 10. Nc3 {[%clk 0:02:57.6]} 10... dxc4 {[%clk 0:02:33.2]} 11. e4
{[%clk 0:02:57.7]} 11... O-O {[%clk 0:02:30.5]} 12. a4 {[%clk 0:02:46.4]} 12...
a5 {[%clk 0:02:28.1]} 13. Qe2 {[%clk 0:02:44.7]} 13... Nb6 {[%clk 0:02:26.7]}
14. Bg5 {[%clk 0:02:43.1]} 14... Be6 {[%clk 0:02:23.8]} 15. Rad1 {[%clk
0:02:34.5]} 15... h6 {[%clk 0:02:22.8]} 16. Bf4 {[%clk 0:02:29.7]} 16... Qc8
{[%clk 0:02:15.8]} 17. Ne5 {[%clk 0:02:25.7]} 17... Re8 {[%clk 0:02:07.4]} 18.
Be3 {[%clk 0:02:22.5]} 18... Qc7 {[%clk 0:01:55.8]} 19. Bf4 {[%clk 0:02:18.5]}
19... Bd6 {[%clk 0:01:51.6]} 20. Bxh6 {[%clk 0:01:49]} 20... Bxe5 {[%clk
0:01:28.3]} 21. dxe5 {[%clk 0:01:49.9]} 21... Ng4 {[%clk 0:01:19.6]} 22. Bf4
{[%clk 0:01:43]} 22... Nxe5 {[%clk 0:01:16.5]} 23. h3 {[%clk 0:01:32.6]} 23...
f6 {[%clk 0:01:12.6]} 24. Qh5 {[%clk 0:01:29.9]} 24... Qf7 {[%clk 0:01:10]} 25.
Qxf7+ {[%clk 0:01:14.6]} 25... Bxf7 {[%clk 0:01:02.9]} 26. Be3 {[%clk
0:01:10.9]} 26... Nbd7 {[%clk 0:00:58.8]} 27. Rd6 {[%clk 0:01:10.3]} 27... Reb8
{[%clk 0:00:44.1]} 28. Rfd1 {[%clk 0:01:09.5]} 28... b5 {[%clk 0:00:42.9]} 29.
Rxd7 {[%clk 0:00:59]} 29... Nxd7 {[%clk 0:00:39.1]} 30. Rxd7 {[%clk 0:00:59.9]}
30... b4 {[%clk 0:00:34.8]} 31. Ne2 {[%clk 0:00:57.9]} 31... c3 {[%clk 0:00:31]}
32. Bc1 {[%clk 0:00:46.2]} 32... cxb2 {[%clk 0:00:25.9]} 33. Bxb2 {[%clk
0:00:44.1]} 33... Rd8 {[%clk 0:00:26]} 34. Rxd8+ {[%clk 0:00:38.6]} 34... Rxd8
{[%clk 0:00:26.9]} 35. Bd4 {[%clk 0:00:38.3]} 35... Bb3 {[%clk 0:00:17.6]} 36.
Bb6 {[%clk 0:00:38.6]} 36... Rd2 {[%clk 0:00:15.9]} 37. Kf2 {[%clk 0:00:39.4]}
37... Bc4 {[%clk 0:00:15.5]} 38. Bf3 {[%clk 0:00:39.1]} 38... b3 {[%clk
0:00:15.5]} 39. Bxa5 {[%clk 0:00:38.9]} 39... b2 {[%clk 0:00:13.3]} 40. Bxd2
{[%clk 0:00:34.4]} 40... b1=Q {[%clk 0:00:13.6]} 41. a5 {[%clk 0:00:33.1]} 41...
Bxe2 {[%clk 0:00:13]} 42. Kxe2 {[%clk 0:00:29.9]} 42... Qb5+ {[%clk 0:00:12.9]}
43. Kf2 {[%clk 0:00:28.9]} 43... c5 {[%clk 0:00:13.3]} 44. Be2 {[%clk
0:00:21.4]} 44... c4 {[%clk 0:00:13.5]} 45. Ke3 {[%clk 0:00:21.1]} 45... Qb3+
{[%clk 0:00:12.9]} 46. Kd4 {[%clk 0:00:18.1]} 46... Qb2+ {[%clk 0:00:13]} 47.
Ke3 {[%clk 0:00:09.3]} 47... c3 {[%clk 0:00:13.2]} 48. Bc4+ {[%clk 0:00:09.2]}
48... Kh8 {[%clk 0:00:12.7]} 49. Bxc3 {[%clk 0:00:08.6]} 49... Qxc3+ {[%clk
0:00:12.6]} 50. Bd3 {[%clk 0:00:09.5]} 50... Qxa5 {[%clk 0:00:12]} 51. Be2
{[%clk 0:00:10.1]} 51... Qc5+ {[%clk 0:00:12.2]} 52. Kf4 {[%clk 0:00:10.4]}
52... Qe5+ {[%clk 0:00:12]} 53. Kf3 {[%clk 0:00:10.6]} 53... g5 {[%clk
0:00:11.4]} 54. h4 {[%clk 0:00:10.5]} 54... g4+ {[%clk 0:00:10.5]} 55. Ke3
{[%clk 0:00:10.2]} 55... Qxg3+ {[%clk 0:00:10]} 56. Kd4 {[%clk 0:00:10.9]} 56...
Qxh4 {[%clk 0:00:10]} 57. Ke3 {[%clk 0:00:11.1]} 57... Qg3+ {[%clk 0:00:09.9]}
58. Kd2 {[%clk 0:00:11.2]} 58... Qf4+ {[%clk 0:00:09.6]} 59. Kd3 {[%clk
0:00:11.7]} 59... g3 {[%clk 0:00:10]} 0-1